Cogmind - Beta 10.2 *** ADVENTURER MODE // 2021.11.06 @ 11:55:47 Player: Draug Result: Destroyed by Y-45 Defender with Beam Rifle Performance ------------- Evolutions (1) 500 Regions Visited (3) 600 Robots Destroyed (53) 265 Value Destroyed (1043) 1043 Prototype IDs (1) 20 Alien Tech Used (0) 0 Bonus (0) 0 TOTAL SCORE: 2428 Bonus ------- None Cogmind --------- Core Integrity 0/400 Matter 287/300 Energy 100/100 System Corruption 0% Temperature Cool (9) Movement Core (400) Ox7 Location -9/Storage Parts ------- > --- POWER (1) -------- (None) > --- PROPULSION (3) --- (None) > --- UTILITY (3) ------ Large Storage Unit Improved Signal Interpreter Hardened Light Armor Plating > --- WEAPON (2) ------- Mining Claw > --- INVENTORY (10) --- Improved Ion Engine Aluminum Leg Heat Sink Weight Redist. System Visual Processing Unit Improved Terrain Scanner Transport Network Coupler Armor Integrity Analyzer Drone Bay (2/2) Improved Assault Rifle Peak State ------------ > --- POWER ------------ Improved Ion Engine > --- PROPULSION ------- Wheel Wheel > --- UTILITY ---------- Large Storage Unit Improved Signal Interpreter Hardened Light Armor Plating > --- WEAPON ----------- Improved Assault Rifle Mining Claw > --- INVENTORY -------- Improved Ion Engine Aluminum Leg Heat Sink Weight Redist. System Visual Processing Unit Improved Terrain Scanner Transport Network Coupler Armor Integrity Analyzer Drone Bay Autogun [Rating: 15] Favorites ----------- Power Ion Engine Engine Ion Engine Propulsion Wheel Leg Aluminum Leg Wheel Wheel Flight Unit Flight Unit Utility Large Storage Unit Device ECM Suite Storage Large Storage Unit Processor Improved Signal Interpreter Protection Hardened Light Armor Plating Weapon Mining Claw Energy Gun Medium Laser Energy Cannon Light EM Pulse Cannon Ballistic Gun Assault Rifle Launcher Grenade Launcher Special Weapon Plasma Cutter Slashing Weapon Mining Claw Special Melee Weapon Datajack Build | -11 -10 -9 -9 ------- Run | Scr Mat Mat Sto Slots Evolved 2 | . . 2 . Power . | . . . . Propulsion 1 | . . 1 . Utility 1 | . . 1 . Weapon . | . . . . Parts Attached 60 | 6 18 21 15 Power 10 | 1 3 2 4 Engine 10 | 1 3 2 4 Core . | . . . . Reactor . | . . . . Propulsion 20 | 2 5 9 4 Treads . | . . . . Leg 4 | . . 4 . Wheel 14 | 2 3 5 4 Hover . | . . . . Flight 2 | . 2 . . Utility 12 | 1 4 6 1 Device 6 | . 1 5 . Storage 2 | 1 1 . . Processor 2 | . 1 1 . Hackware . | . . . . Protection 2 | . 1 . 1 Artifact . | . . . . Weapon 18 | 2 6 4 6 Energy Gun 4 | 1 1 2 . Energy Cannon 1 | . . 1 . Ballistic Gun 4 | 1 . . 3 Ballistic Cannon . | . . . . Launcher 1 | . 1 . . Special Weapon 4 | . . 1 3 Impact Weapon . | . . . . Slashing Weapon 3 | . 3 . . Piercing Weapon . | . . . . Special Melee Weapon 1 | . 1 . . Unidentified Prototypes 1 | . . . 1 Parts Lost 23 | . 2 12 9 Power 3 | . . 1 2 Propulsion 11 | . 1 6 4 Utility 2 | . . 1 1 Weapon 7 | . 1 4 2 Highest Loss Streak 5 | . 2 5 3 Average Slot Usage (%) 92 | . 96 92 86 Engine 11 | . 14 10 9 Leg 3 | . . 6 . Wheel 23 | . 25 21 24 Device 7 | . 4 10 5 Storage 11 | . 14 11 11 Processor 8 | . 2 11 11 Protection 2 | . 4 . 5 Energy Gun 4 | . 12 2 . Energy Cannon 1 | . . 3 . Ballistic Gun 1 | . . . 5 Special Weapon 2 | . . 4 3 Slashing Weapon 10 | . 10 11 11 Naked Turns . | . . . . Heaviest Build 33 | 11 26 30 33 Greatest Support 36 | 26 26 36 36 Greatest Overweight (x) 3 | . 3 2 3 Average Overweight (x) . | . . . . Largest Inventory Capacity 10 | 6 10 10 10 Average Capacity 8 | 5 6 10 10 Most Carried 10 | 3 7 10 10 Average Carried 7 | 1 5 9 9 Final Capacity 10 | 6 10 10 10 Final Carried 10 | 2 7 10 10 Class Distribution -------------------- 86% | Mutant 13% | Scavenger-Mutant Dominant Class ---------------- Mutant | -10/Materials Mutant | -9/Materials Mutant | -9/Storage Resources | -11 -10 -9 -9 ----------- Run | Scr Mat Mat Sto Matter Collected 757 | 260 160 190 147 Remotely . | . . . . Salvage Created 1797 | 90 430 909 368 Parts 129 | 2 42 61 24 Haulers Intercepted 3 | . 1 1 1 Recyclers Shooed 1 | . 1 . . Parts Field Recycled . | . . . . Retrieved Matter . | . . . . Parts Self-Destructed . | . . . . Prevented . | . . . . Kills | -11 -10 -9 -9 ------- Run | Scr Mat Mat Sto Combat Hostiles Destroyed 34 | . 12 18 4 Melee 8 | . 3 4 1 Guns 14 | . 9 4 1 Cannons 12 | . . 10 2 Classes Destroyed 9 | 1 7 1 . Worker 5 | . 1 1 3 Builder 3 | . 1 1 1 Hauler 3 | . 1 1 1 Recycler 2 | 1 . 1 . Mechanic 1 | . 1 . . Watcher 5 | . 3 1 1 Swarmer 14 | . 9 5 . Grunt 14 | . 3 9 2 Sentry 6 | . . 4 2 Best Kill Streak 9 | 1 9 4 3 Combat Bots Only 5 | . 5 3 1 Max Kills in Single Turn 1 | 1 1 1 1 Gunslinging . | . . . . Exploded . | . . . . Melee 1 | . 1 1 1 Uniques/NPCs Destroyed . | . . . . Combat | -11 -10 -9 -9 -------- Run | Scr Mat Mat Sto Damage Taken 1928 | . 205 943 780 Core 463 | . 61 211 191 Absorbed by Shields . | . . . . Core Remaining (%) 87 | 100 75 . . Volleys Fired 124 | 8 22 62 32 Largest 1 | 1 1 1 1 Hottest 56 | 50 50 56 23 Shots Fired 124 | 8 22 62 32 Gun 72 | 8 22 27 15 Cannon 20 | . . 20 . Launcher . | . . . . Special 32 | . . 15 17 Kinetic 15 | . . . 15 Thermal 77 | 8 17 35 17 Explosive . | . . . . Electromagnetic 32 | . 5 27 . Robot Hit Streak 35 | 5 12 35 11 Robot Miss Streak 3 | 1 3 2 2 Penetration Max . | . . . . Secondary Targets . | . . . . Shots Hit Robots 139 | 7 28 62 42 Core Hits 67 | 2 20 29 16 Critical Hits 6 | . . 2 4 Critical Kills 2 | . . 1 1 Critical Parts Destroyed 4 | . . 1 3 Melee Attacks 35 | . 11 11 13 Impact . | . . . . Slashing 35 | . 11 11 13 Piercing . | . . . . Sneak Attacks 9 | . 4 3 2 Combat Hostiles . | . . . . Follow-up Attacks 1 | . 1 . . Damage Inflicted 2800 | 86 719 1203 792 Guns 827 | 86 225 312 204 Cannons 364 | . . 364 . Explosions 65 | . 41 24 . Melee 1247 | . 453 384 410 Ramming . | . . . . Kinetic 204 | . . . 204 Thermal 866 | 86 214 388 178 Explosive . | . . . . Electromagnetic 483 | . 52 431 . Impact . | . . . . Slashing 1247 | . 453 384 410 Piercing . | . . . . Highest Corruption 1 | . 1 . . Average Corruption 1 | . 1 . . Corruption Purged . | . . . . Effects 1 | . 1 . . Message Errors 1 | . 1 . . Overload Shots . | . . . . Overflow Damage 139 | . 35 102 2 Projectiles 34 | . . 34 . Explosions . | . . . . Melee 105 | . 35 68 2 Knockbacks . | . . . . Impact . | . . . . Kinetic . | . . . . Secondary . | . . . . Self-Inflicted Damage 4 | . . 4 . Shots 1 | . . 1 . Rammed . | . . . . Targets Rammed . | . . . . Kicked . | . . . . Crushed . | . . . . Highest Temperature 98 | 50 98 78 9 Average Temperature 30 | 28 31 31 4 Received Heat Transfer 888 | . 18 501 369 Siege Activations . | . . . . Robots Corrupted . | . . . . Combat Hostiles . | . . . . Parts Fried 2 | . . 2 . Impact Corruptions . | . . . . Robots Melted . | . . . . Combat Hostiles . | . . . . Parts Melted 5 | . 1 2 2 Heat Transferred 2494 | 259 568 1075 592 Parts Sabotaged . | . . . . Parts Stolen . | . . . . Parts Stripped . | . . . . Power Chain Reactions 2 | . 1 1 . Missiles Intercepted . | . . . . Alert | -11 -10 -9 -9 ------- Run | Scr Mat Mat Sto Peak Influence 384 | 5 219 384 262 Initial 138 | . 2 39 138 Average 145 | 4 86 200 176 Maximum Alert Level 1 | . 1 1 1 Low Security (%) 64 | 100 84 49 52 Level 1 35 | . 15 50 47 Level 2 . | . . . . Level 3 . | . . . . Level 4 . | . . . . Level 5 . | . . . . High Security . | . . . . Max Security . | . . . . Squads Dispatched 6 | . 1 3 2 Investigation 2 | . 1 . 1 Extermination . | . . . . Reinforcement 4 | . . 3 1 Assault . | . . . . Garrison . | . . . . Intercept . | . . . . Construction Impeded . | . . . . Haulers Reinforced . | . . . . Stealth | -11 -10 -9 -9 --------- Run | Scr Mat Mat Sto Distress Signals 4 | . 1 2 1 Communications Jammed . | . . . . Distress Signals . | . . . . Times Spotted 78 | . 17 44 17 Peak Tracking Total 7 | . 3 5 7 Tactical Retreats 15 | . . 12 3 Traps | -11 -10 -9 -9 ------- Run | Scr Mat Mat Sto Traps Triggered 7 | . 2 . 5 Indirectly . | . . . . Trap Hack Attempts . | . . . . Triggered . | . . . . Disarmed . | . . . . Reprogrammed . | . . . . Reused . | . . . . Traps Extracted . | . . . . Installed . | . . . . Triggered . | . . . . Machines | -11 -10 -9 -9 ---------- Run | Scr Mat Mat Sto Machines Disabled . | . . . . Max in Single Turn . | . . . . Machines Sabotaged . | . . . . Garrisons Compromised . | . . . . Overloaded Fab Kills . | . . . . Fab Network Shutdowns . | . . . . Hacking | -11 -10 -9 -9 --------- Run | Scr Mat Mat Sto Machines Accessed 9 | . 6 1 2 Terminals 6 | . 3 1 2 Fabricators . | . . . . Repair Stations 1 | . 1 . . Recycling Units 2 | . 2 . . Scanalyzers . | . . . . Garrison Access . | . . . . Total Hacks 32 | . 25 2 5 Successful 26 | . 19 2 5 Failed 6 | . 6 . . Catastrophic . | . . . . Database Lockouts . | . . . . Manual . | . . . . Terminals 21 | . 14 2 5 Fabricators . | . . . . Repair Stations 2 | . 2 . . Recycling Units 9 | . 9 . . Scanalyzers . | . . . . Garrison Access . | . . . . Terminal Hacks 18 | . 11 2 5 Record 7 | . 5 . 2 Open Door 1 | . . . 1 Branch Access Points 2 | . . 1 1 Emergency Access Points 1 | . . 1 . Alert Level 4 | . 3 . 1 Unreport Threat 1 | . 1 . . Transport Status 1 | . 1 . . Registered Prototypes 1 | . 1 . . Fabricator Hacks . | . . . . Repair Station Hacks 1 | . 1 . . Scan Component 1 | . 1 . . Recycling Unit Hacks 7 | . 7 . . Recycle Component 1 | . 1 . . Process 1 | . 1 . . Report Inventory 3 | . 3 . . Retrieve Matter 1 | . 1 . . Retrieve Components 1 | . 1 . . Scanalyzer . | . . . . Garrison Access Hacks . | . . . . Unauthorized Hacks . | . . . . Terminals . | . . . . Fabricators . | . . . . Repair Stations . | . . . . Recycling Units . | . . . . Scanalyzers . | . . . . Garrison Access . | . . . . Data Cores Recovered . | . . . . Used . | . . . . Hacking Detections 6 | . 5 . 1 Full Trace Events 1 | . . . 1 Feedback Events . | . . . . Feedback Blocked . | . . . . Robot Schematics Acquired . | . . . . Robots Built . | . . . . Matter . | . . . . Time . | . . . . Total Robot Build Rating . | . . . . Part Schematics Acquired . | . . . . Parts Built . | . . . . Matter . | . . . . Time . | . . . . Total Part Build Rating . | . . . . Parts Repaired . | . . . . Time . | . . . . Parts Recycled 1 | . 1 . . Recycled Matter 10 | . 10 . . Retrieved Matter 10 | . 10 . . Retrieved Components 1 | . 1 . . Parts Scanalyzed . | . . . . Part Schematics Acquired . | . . . . Parts Damaged . | . . . . Bothacking | -11 -10 -9 -9 ------------ Run | Scr Mat Mat Sto Used RIF Installer . | . . . . Robots Hacked . | . . . . Non-combat . | . . . . Combat . | . . . . Robot Hacks Applied . | . . . . Relay Couplers Released . | . . . . Robots Rewired . | . . . . Allies Hacked . | . . . . Hacks Repelled . | . . . . Allies | -11 -10 -9 -9 -------- Run | Scr Mat Mat Sto Total Allies . | . . . . Largest Group . | . . . . Highest-Rated Group . | . . . . Highest-Rated Ally . | . . . . Total Orders . | . . . . Ally Attacks . | . . . . Total Damage . | . . . . Kills . | . . . . Allies Corrupted . | . . . . Allies Melted . | . . . . Intel | -11 -10 -9 -9 ------- Run | Scr Mat Mat Sto Robot Analysis Total . | . . . . Derelict Logs Recovered . | . . . . Drone Launches . | . . . . Drone Recoveries . | . . . . Exploration | -11 -10 -9 -9 ------------- Run | Scr Mat Mat Sto Turns Passed 2469 | 247 658 1028 536 Spaces Moved 1779 | 243 619 592 325 Core 6 | 6 . . . Treads . | . . . . Legs 121 | . . 121 . Wheels 1632 | 237 599 471 325 Hover . | . . . . Flight 20 | . 20 . . Fastest Speed 50 | 50 80 80 80 Average Speed 90 | 89 85 96 90 Slowest Speed 285 | 90 285 180 110 Overloaded Moves . | . . . . Propulsion Burnouts . | . . . . Robots Hopped . | . . . . Cave-ins Triggered . | . . . . Exploration Rate (%) 46 | 12 86 44 44 Regions Visited 3 Branch Regions 1 Pre-discovered Areas . | . . . . Known Exits Taken 2 | . 1 1 . Unknown Exits Taken 1 | 1 . . . Scrap Searched . | . . . . Spaces Dug . | . . . . Terrain Destroyed 8 | . 2 6 . Melee . | . . . . Projectile . | . . . . AOE 8 | . 2 6 . Terrain Rammed . | . . . . Walls Destroyed . | . . . . Machines Disabled . | . . . . Actions | -11 -10 -9 -9 --------- Run | Scr Mat Mat Sto Total 2406 | 266 705 945 490 Wait 325 | . 6 238 81 Move 1776 | 242 618 591 325 Hop . | . . . . Pick Up 54 | 9 18 17 10 Fast Attach 12 | . 1 4 7 Attach 30 | 6 7 12 5 Detach 1 | . 1 . . Swap 18 | . 10 5 3 Drop 24 | 1 12 5 6 Fire 124 | 8 22 62 32 Melee 34 | . 10 11 13 Ram . | . . . . Kick . | . . . . Crush . | . . . . Escape Stasis 8 | . . . 8 Rewire . | . . . . Trap . | . . . . Miscellaneous . | . . . . Route ------- -11/Scrapyard -10/Materials (discovered 3 exits: *Mat / *Min x2) -9/Materials (discovered 3 exits: *Min x2 / *Sto) -9/Storage (discovered 1 exit: Rec) History --------- Turn | Location | Event 21 | -11/Scrapyard | Discovered new exit (range 16) 248 | -11/Scrapyard | Entered Materials 314 | -10/Materials | Build established: Mutant 393 | -10/Materials | Discovered new exit (range 5) 453 | -10/Materials | Discovered new exit (range 14) 843 | -10/Materials | Identified exit to Mines 899 | -10/Materials | Discovered new exit (range 9) 905 | -10/Materials | Identified exit to Materials 906 | -10/Materials | Entered another Materials area 906 | -9/Materials | Evolved 2 slots: Propulsion x1, Utility x1 915 | -9/Materials | Identified exit to Mines 915 | -9/Materials | Identified exit to Storage 1454 | -9/Materials | Lost 3 parts (1n1u1w) 1533 | -9/Materials | Lost 5 parts (1p2n2w) 1914 | -9/Materials | Core integrity fell below 50% 1934 | -9/Materials | Entered Storage 2179 | -9/Storage | Lost 3 parts (1p1n1w) 2351 | -9/Storage | Identified exit to Recycling 2422 | -9/Storage | Core integrity fell below 20% 2470 | -9/Storage | Destroyed by Y-45 Defender with Beam Rifle Last Messages --------------- 02351_ ALERT: Suspicious activity at Terminal S009. Dispatching Investigation squad. [Achievement: One Hack Too Far] 02361_ U-05 Engineer lays Concrete. 02369_ ALERT: Hostiles spotted, dispatching reinforcements to Terminal S010. 02406_ Y-45 Defender destroyed. 02415_ Wheel destroyed. 02416_ Destroyed Sml. Laser. 02425_ Imp. Ion Engine destroyed. 02434_ K-01 Serf destroyed. 02439_ K-01 Serf collects debris. 02450_ U-05 Engineer lays Concrete. 02454_ A-02 Transporter destroyed. 02454_ W-16 Scout distress signal alerts nearby ally. 02458_ R-06 Scavenger collects Lgt. Treads. 02462_ R-06 Scavenger collects Prototype Energy Gun. 02463_ Imp. Assault Rifle destroyed. 02467_ Wheel destroyed. [Achievement: First Step to Greatness] Map ----- +----------------------------------------------------+ | | | | | | | | | | | | | | | | | | | | | | | ?????????????????????????????????????????????????? | | ?????????????????????????????????????????????????? | | ?????????????????????????????????????????????????? | | ????????????????????#######??????????????????????? | | ????????????????????# #??????????????????????? | | ????????????????????# ???????????????????????? | | ????????????????????+ ???????????????????????? | | ????????????????????# ???????????????????????? | | ????????????????????? ???????????????????????? | | ?????????????????????# #???????????????????????? | | ??????????##########?# #?#######???????????????? | | ???###???# ?# [#? "T" #???????????????? | | #### #???" ][ # [[# #???????????????? | | #???Y ]! # =%# """ #???????????????? | | #???" + =@Y""" #???????????????? | | #???# # =# """ #???????????????? | | * #???# ??????# # #???????????????? | | ! #???????????????# #? #???????????????? | | ################# ##### ###???????????????? | | # + ## #????#?????????????????? | | """ # #= ## r #??????????????????????? | | """ + #*[ ## T #??????????????????????? | | """ # #%%* ## #??????????????????????? | | """ + +!% ## #??????????????????????? | | """* # #! ### ##??????????????????????? | | %!# #*= #?# ###?????????????????????? | | ###### # #?# + "?????????????????????? | | # ###########?# #T#?????????????????????? | | # ##########??# ###?????????????????????? | | # # #??# #???????????????????????? | | # + = #??# #???????????????????????? | | # # #### #???????????????????????? | | #* # ! % + #???????????????????????? | | !+ + #### #???????????????????????? | | # # #??# #???????????????????????? | | # # % #??# #???????????????????????? | | !#! # #??# #???????????????????????? | | ! #! ^# ! #??# #???????????????????????? | | # ^ #######+##??# #???????????????????????? | +----------------------------------------------------+ Best States ------------- Heat Dissipation 28 Energy Generation 12 Energy Capacity 265 Matter Stores 300 Matter Capacity 300 Sight Range 18 Terrain Scan Density 10 ECM Strength 1 Armor Coverage 150 Resistance: KI 20 Resistance: TH 20 Resistance: EX 20 Resistance: EM 20 Resistance: I 20 Resistance: S 20 Resistance: P 20 Core Shielding 20 Evasion (%) 44 Offensive Hacking 10 Item Schematics ----------------- None Robot Schematics ------------------ None Fabricated ------------ Nothing Alien Tech Used ----------------- None Achievements -------------- Crack Shot Everything Is Under Control First Step to Greatness Loot Pinata One Hack Too Far Risk Taker Uninvited Guest Challenges ------------ None Game ------ Seed LobotomyMeleeAutohacker Manual? 0 Play Time 01:06:31 Cumulative 8.1 hours Start 2021.11.06 @ 10:44:38 End 2021.11.06 @ 11:55:47 Sessions 1 Manual Loads 0 Difficulty Adventurer Special Mode None Game No. 12 Rogue 11 Adventurer 1 Explorer 0 Win Type - Total 0 Types 0/0/0/0/0/0/0/0/0 Lore% 5 Gallery% 14 Achievement% 2 Wizard Run 0 Options --------- ASCII 0 Keyboard 0 Movement Mouse Keybinds 0 Fullscreen 1 Font 18/SmallcapsGlow Map View 76x50 Tactical HUD 1 Map Filters NONE Filters NONE Steam 1 RUN: fc3dd12d-fd5b-468d-9023-cf7dbc79876c